Workbook

Sheet Sheet1
B1: Kinross Road Runners 2016 Club Championship | J1: Best 5 races to count
E2: Alloa Half | F2: Alloa Half | G2: Tay Ten | H2: Tay Ten | I2: Kinross PTA 10k | J2: Dunblane 7.5 | K2: Dunblane 7.5 | L2: Glenrothes 10k | M2: BrigBash 5m | N2: BrigBash 5m | O2: Kn'khill 3.9M | P2: Kn'hill 3.9M | Q2: Perth Parkrun | R2: Perth Parkrun | S2: Barry Buddon Half | T2: Barry Buddon Half | U2: East Neuk 10k | V2: Kirkcaldy Parkrun | W2: Kirkcaldy Parkrun | X2: Number of Races | Y2: Average Time | Z2: No. Races for ranking | AA2: Best 5 Average Time
E3: Actual | F3: 10k Equiv | G3: Actual | H3: 10k Equiv | I3: 10k Equiv | J3: Actual | K3: 10k Equiv | L3: 10k Equiv | M3: Actual | N3: 10k Equiv | O3: Actual | P3: 10k Equiv | Q3: Actual | R3: 10k Equiv | S3: Actual | T3: 10k Equiv | U3: 10k Equiv | V3: Actual | W3: 10k Equiv
B4: Surname | C4: First | E4: hh:mm:ss | F4: hh:mm:ss | G4: hh:mm:ss | H4: hh:mm:ss | I4: hh:mm:ss | J4: hh:mm:ss | K4: hh:mm:ss | L4: hh:mm:ss | M4: hh:mm:ss | N4: hh:mm:ss | O4: hh:mm:ss | P4: hh:mm:ss | Q4: hh:mm:ss | R4: hh:mm:ss | S4: hh:mm:ss | T4: hh:mm:ss | U4: hh:mm:ss | V4: hh:mm:ss | W4: hh:mm:ss | Y4: hh:mm:ss | AA4: hh:mm:ss
B5: Test | C5: Test | E5: 1.157407407e-05 | F5: =(E5*86400)*POWER((6.2138818/13.1094),1.07)/86400 -> 5.206801754e-06 | G5: 1.157407407e-05 | H5: =(G5*86400)*POWER((6.2138818/10),1.07)/86400 -> 6.956401732e-06 | I5: 1.157407407e-05 | J5: 1.157407407e-05 | K5: =(J5*86400)*POWER((6.2138818/7.5),1.07)/86400 -> 9.463877338e-06 | L5: 1.157407407e-05 | M5: 1.157407407e-05 | N5: =(M5*86400)*POWER((6.2138818/5),1.07)/86400 -> 1.460450191e-05 | O5: 1.157407407e-05 | P5: =(O5*86400)*POWER((6.2138818/3.9),1.07)/86400 -> 1.905221725e-05 | Q5: 1.157407407e-05 | R5: =(Q5*86400)*POWER((10/5),1.07)/86400 -> 2.429899731e-05 | S5: 1.157407407e-05 | T5: =(S5*86400)*POWER((6.2138818/13.1094),1.07)/86400 -> 5.206801754e-06 | U5: 1.157407407e-05 | V5: 1.157407407e-05 | W5: =(V5*86400)*POWER((10/5),1.07)/86400 -> 2.429899731e-05 | X5: =COUNT(F5,H5,I5,K5:L5,N5,P5,R5,T5:U5,W5) -> 11 | Y5: =IFERROR(AVERAGE(F5,H5,I5,K5:L5,N5,P5,R5,T5:U5,W5),"No race run") -> 1.307371078e-05 | Z5: =IF(COUNT(F5,H5,I5,K5:L5,N5,P5,R5,T5:U5,W5)>5,5,COUNT(F5,H5,I5,K5:L5,N5,P5,R5,T5:U5,W5)) -> 5 | AA5: =IFERROR(IF(X5>5,AVERAGE(SMALL((F5,H5,I5,K5:L5,N5,P5,R5,T5:U5,W5),{1,2,3,4,5})),Y5),"No race run") -> 7.68159133e-06
B6: Laycock | C6: Andy | D6: M | E6: 0.05560185185 | F6: =(E6*86400)*POWER((6.2138818/13.1094),1.07)/86400 -> 0.02501347562 | I6: 00:37:53 | M6: 00:28:17 | N6: =(M6*86400)*POWER((6.2138818/5),1.07)/86400 -> 0.02478383975 | O6: 00:21:30 | P6: 0.02457736025 | S6: 01:18:58 | T6: =(S6*86400)*POWER((6.2138818/13.1094),1.07)/86400 -> 0.02466982671 | U6: 00:36:41 | X6: =COUNT(F6,H6,I6,K6:L6,N6,P6,R6,T6:U6,W6) -> 6 | Y6: =IFERROR(AVERAGE(F6,H6,I6,K6:L6,N6,P6,R6,T6:U6,W6),"No race run") -> 0.02513781829 | Z6: =IF(COUNT(F6,H6,I6,K6:L6,N6,P6,R6,T6:U6,W6)>5,5,COUNT(F6,H6,I6,K6:L6,N6,P6,R6,T6:U6,W6)) -> 5 | AA6: =IFERROR(IF(X6>5,AVERAGE(SMALL((F6,H6,I6,K6:L6,N6,P6,R6,T6:U6,W6),{1,2,3,4,5})),Y6),"No race run") -> 0.02490380787
B7: Scott | C7: David | D7: M | I7: 00:38:28 | L7: 00:38:52 | M7: 00:29:35 | N7: =(M7*86400)*POWER((6.2138818/5),1.07)/86400 -> 0.02592299089 | O7: 00:22:17 | P7: 0.02547281446 | Q7: 00:18:04 | R7: =(Q7*86400)*POWER((10/5),1.07)/86400 -> 0.02634011308 | S7: 01:24:29 | T7: =(S7*86400)*POWER((6.2138818/13.1094),1.07)/86400 -> 0.02639327809 | X7: 6 | Y7: 0.02630548337 | Z7: 5 | AA7: =IFERROR(IF(X7>5,AVERAGE(SMALL((F7,H7,I7,K7:L7,N7,P7,R7,T7:U7,W7),{1,2,3,4,5})),Y7),"No race run") -> 0.0261684319
B8: Strachan | C8: Scott | D8: M | E8: 0.05861111111 | F8: =(E8*86400)*POWER((6.2138818/13.1094),1.07)/86400 -> 0.02636724408 | I8: 00:39:06 | J8: 00:48:06 | K8: =(J8*86400)*POWER((6.2138818/7.5),1.07)/86400 -> 0.02731275 | L8: 00:38:07 | M8: 00:29:47 | N8: =(M8*86400)*POWER((6.2138818/5),1.07)/86400 -> 0.02609824492 | O8: 00:22:47 | P8: 0.02604438098 | Q8: 00:18:09 | R8: =(Q8*86400)*POWER((10/5),1.07)/86400 -> 0.02646160807 | S8: 01:24:41 | T8: =(S8*86400)*POWER((6.2138818/13.1094),1.07)/86400 -> 0.02645575971 | V8: 0.01326388889 | W8: =(V8*86400)*POWER((10/5),1.07)/86400 -> 0.02784665091 | X8: 9 | Y8: 0.02668992487 | Z8: 5 | AA8: =IFERROR(IF(X8>5,AVERAGE(SMALL((F8,H8,I8,K8:L8,N8,P8,R8,T8:U8,W8),{1,2,3,4,5})),Y8),"No race run") -> 0.02628544755
B9: Kemp | C9: Graham | D9: M | I9: 00:42:30 | J9: 00:52:54 | K9: =(J9*86400)*POWER((6.2138818/7.5),1.07)/86400 -> 0.03003834667 | L9: 00:43:03 | M9: 00:32:32 | N9: =(M9*86400)*POWER((6.2138818/5),1.07)/86400 -> 0.02850798773 | O9: 00:25:12 | P9: 0.02880695248 | Q9: 00:19:45 | R9: =(Q9*86400)*POWER((10/5),1.07)/86400 -> 0.02879431181 | X9: 6 | Y9: 0.02925955349 | Z9: 5 | AA9: =IFERROR(IF(X9>5,AVERAGE(SMALL((F9,H9,I9,K9:L9,N9,P9,R9,T9:U9,W9),{1,2,3,4,5})),Y9),"No race run") -> 0.02910379485
B10: Allcoat | C10: Paul | D10: M | O10: 00:25:41 | P10: 0.02935946678 | Q10: 00:20:41 | R10: =(Q10*86400)*POWER((10/5),1.07)/86400 -> 0.03015505566 | S10: 01:34:09 | T10: =(S10*86400)*POWER((6.2138818/13.1094),1.07)/86400 -> 0.02941322311 | U10: 00:42:56 | V10: 0.01430555556 | W10: =(V10*86400)*POWER((10/5),1.07)/86400 -> 0.03003356067 | X10: 5 | Y10: 0.02975522421 | Z10: 5 | AA10: =IFERROR(IF(X10>5,AVERAGE(SMALL((F10,H10,I10,K10:L10,N10,P10,R10,T10:U10,W10),{1,2,3,4,5})),Y10),"No race run") -> 0.02975522421
B11: Boyle | C11: Mhairi | D11: F | G11: 0.0502662037 | H11: =(G11*86400)*POWER((6.2138818/10),1.07)/86400 -> 0.03021165272 | I11: 00:43:00 | J11: 00:52:38 | K11: =(J11*86400)*POWER((6.2138818/7.5),1.07)/86400 -> 0.02988692463 | L11: 00:43:58 | O11: : | U11: 00:41:19 | X11: 5 | Y11: 0.0298368451 | Z11: 5 | AA11: =IFERROR(IF(X11>5,AVERAGE(SMALL((F11,H11,I11,K11:L11,N11,P11,R11,T11:U11,W11),{1,2,3,4,5})),Y11),"No race run") -> 0.0298368451
B12: Hill | C12: Martin | D12: M | I12: 00:45:04 | L12: 00:43:13 | O12: 0.01763888889 | P12: =(O12*86400)*POWER((6.2138818/3.9),1.07)/86400 -> 0.02903557909 | Q12: 00:20:37 | R12: =(Q12*86400)*POWER((10/5),1.07)/86400 -> 0.03005785967 | U12: 0.03019675926 | X12: 5 | Y12: 0.03011961368 | Z12: 5 | AA12: =IFERROR(IF(X12>5,AVERAGE(SMALL((F12,H12,I12,K12:L12,N12,P12,R12,T12:U12,W12),{1,2,3,4,5})),Y12),"No race run") -> 0.03011961368
B13: Edgerton | C13: Peter | D13: M | E13: 0.06950231481 | F13: =(E13*86400)*POWER((6.2138818/13.1094),1.07)/86400 -> 0.03126684453 | G13: 0.04864583333 | H13: =(G13*86400)*POWER((6.2138818/10),1.07)/86400 -> 0.02923775648 | L13: 00:43:36 | M13: 00:33:42 | N13: =(M13*86400)*POWER((6.2138818/5),1.07)/86400 -> 0.02953030287 | O13: 00:26:50 | P13: =(O13*86400)*POWER((6.2138818/3.9),1.07)/86400 -> 0.03067406977 | U13: 00:47:49 | V13: 0.01586805556 | W13: =(V13*86400)*POWER((10/5),1.07)/86400 -> 0.03331392531 | X13: 7 | Y13: 0.03107238504 | Z13: 5 | AA13: =IFERROR(IF(X13>5,AVERAGE(SMALL((F13,H13,I13,K13:L13,N13,P13,R13,T13:U13,W13),{1,2,3,4,5})),Y13),"No race run") -> 0.03019735028
B14: Hutt | C14: Sarah | D14: F | E14: 01:37:07 | F14: =(E14*86400)*POWER((6.2138818/13.1094),1.07)/86400 -> 0.03034003382 | G14: 0.05037037037 | H14: =(G14*86400)*POWER((6.2138818/10),1.07)/86400 -> 0.03027426034 | I14: 00:46:39 | L14: 00:44:57 | O14: 00:26:24 | P14: =(O14*86400)*POWER((6.2138818/3.9),1.07)/86400 -> 0.03017871212 | U14: 00:44:08 | V14: 0.01451388889 | W14: =(V14*86400)*POWER((10/5),1.07)/86400 -> 0.03047094262 | X14: 7 | Y14: 0.03078902974 | Z14: 5 | AA14: =IFERROR(IF(X14>5,AVERAGE(SMALL((F14,H14,I14,K14:L14,N14,P14,R14,T14:U14,W14),{1,2,3,4,5})),Y14),"No race run") -> 0.03038241941
B15: Dobson | C15: Judith | D15: F | E15: 0.06880787037 | F15: =(E15*86400)*POWER((6.2138818/13.1094),1.07)/86400 -> 0.03095443643 | G15: 0.05144675926 | H15: =(G15*86400)*POWER((6.2138818/10),1.07)/86400 -> 0.0309212057 | I15: 00:45:37 | J15: 00:55:14 | K15: =(J15*86400)*POWER((6.2138818/7.5),1.07)/86400 -> 0.0313632895 | M15: 00:36:00 | N15: =(M15*86400)*POWER((6.2138818/5),1.07)/86400 -> 0.03154572413 | Q15: 00:21:31 | R15: =(Q15*86400)*POWER((10/5),1.07)/86400 -> 0.03137000552 | S15: 01:38:49 | T15: =(S15*86400)*POWER((6.2138818/13.1094),1.07)/86400 -> 0.0308711276 | U15: 00:44:51 | X15: 8 | Y15: 0.03123123287 | Z15: 5 | AA15: =IFERROR(IF(X15>5,AVERAGE(SMALL((F15,H15,I15,K15:L15,N15,P15,R15,T15:U15,W15),{1,2,3,4,5})),Y15),"No race run") -> 0.03105117851
B16: Gray | C16: Kirsty | D16: F | I16: 00:45:58 | L16: 00:45:29 | O16: 00:27:17 | P16: =(O16*86400)*POWER((6.2138818/3.9),1.07)/86400 -> 0.03118847964 | Q16: 00:21:08 | R16: =(Q16*86400)*POWER((10/5),1.07)/86400 -> 0.03081112858 | V16: 0.0150462963 | W16: =(V16*86400)*POWER((10/5),1.07)/86400 -> 0.0315886965 | X16: 5 | Y16: 0.03141904983 | Z16: 5 | AA16: =IFERROR(IF(X16>5,AVERAGE(SMALL((F16,H16,I16,K16:L16,N16,P16,R16,T16:U16,W16),{1,2,3,4,5})),Y16),"No race run") -> 0.03141904983
B17: Findlay | C17: Valerie | D17: F | E17: 0.07594907407 | F17: =(E17*86400)*POWER((6.2138818/13.1094),1.07)/86400 -> 0.03416703311 | G17: 0.05652777778 | H17: =(G17*86400)*POWER((6.2138818/10),1.07)/86400 -> 0.03397506606 | M17: 00:40:10 | N17: =(M17*86400)*POWER((6.2138818/5),1.07)/86400 -> 0.03519684961 | O17: 00:30:46 | P17: =(O17*86400)*POWER((6.2138818/3.9),1.07)/86400 -> 0.03517039304 | S17: 01:56:41 | T17: =(S17*86400)*POWER((6.2138818/13.1094),1.07)/86400 -> 0.03645281908 | U17: 00:52:05 | X17: 6 | Y17: 0.03518852373 | Z17: 5 | AA17: =IFERROR(IF(X17>5,AVERAGE(SMALL((F17,H17,I17,K17:L17,N17,P17,R17,T17:U17,W17),{1,2,3,4,5})),Y17),"No race run") -> 0.03493566466
B18: Dobson | C18: Stuart | D18: M | I18: 00:51:47 | J18: 01:02:59 | K18: =(J18*86400)*POWER((6.2138818/7.5),1.07)/86400 -> 0.03576399246 | M18: 00:39:38 | N18: =(M18*86400)*POWER((6.2138818/5),1.07)/86400 -> 0.03472950555 | Q18: 00:23:45 | R18: =(Q18*86400)*POWER((10/5),1.07)/86400 -> 0.03462607116 | U18: 00:54:09 | X18: 5 | Y18: 0.0357368768 | Z18: 5 | AA18: =IFERROR(IF(X18>5,AVERAGE(SMALL((F18,H18,I18,K18:L18,N18,P18,R18,T18:U18,W18),{1,2,3,4,5})),Y18),"No race run") -> 0.0357368768
B19: Bilton | C19: Geoff | D19: M | G19: 0.06202546296 | H19: =(G19*86400)*POWER((6.2138818/10),1.07)/86400 -> 0.03727935688 | I19: 00:51:43 | J19: 01:05:48 | K19: =(J19*86400)*POWER((6.2138818/7.5),1.07)/86400 -> 0.03736338773 | L19: 00:51:24 | Q19: 00:25:15 | R19: =(Q19*86400)*POWER((10/5),1.07)/86400 -> 0.03681298092 | U19: 00:52:21 | V19: 0.01739583333 | W19: =(V19*86400)*POWER((10/5),1.07)/86400 -> 0.03652139295 | X19: 7 | Y19: 0.03656286878 | Z19: 5 | AA19: =IFERROR(IF(X19>5,AVERAGE(SMALL((F19,H19,I19,K19:L19,N19,P19,R19,T19:U19,W19),{1,2,3,4,5})),Y19),"No race run") -> 0.03625946737
B20: Smith | C20: Alison | D20: F | E20: 0.08246527778 | F20: =(E20*86400)*POWER((6.2138818/13.1094),1.07)/86400 -> 0.03709846249 | G20: 0.06123842593 | H20: =(G20*86400)*POWER((6.2138818/10),1.07)/86400 -> 0.03680632156 | L20: 00:54:36 | M20: 00:43:31 | N20: =(M20*86400)*POWER((6.2138818/5),1.07)/86400 -> 0.03813235449 | O20: 00:32:47 | P20: =(O20*86400)*POWER((6.2138818/3.9),1.07)/86400 -> 0.03747571133 | S20: 02:03:51 | T20: =(S20*86400)*POWER((6.2138818/13.1094),1.07)/86400 -> 0.03869174383 | U20: 00:56:16 | V20: 0.01872685185 | W20: =(V20*86400)*POWER((10/5),1.07)/86400 -> 0.03931577764 | X20: 8 | Y20: 0.03806388901 | Z20: 5 | AA20: =IFERROR(IF(X20>5,AVERAGE(SMALL((F20,H20,I20,K20:L20,N20,P20,R20,T20:U20,W20),{1,2,3,4,5})),Y20),"No race run") -> 0.03748590331
B21: Aird | C21: Andrew | D21: M | E21: 02:09:11 | F21: =(E21*86400)*POWER((6.2138818/13.1094),1.07)/86400 -> 0.04035792039 | G21: 01:37:00 | H21: =(G21*86400)*POWER((6.2138818/10),1.07)/86400 -> 0.04048625808 | I21: 00:56:02 | J21: 01:08:49 | K21: =(J21*86400)*POWER((6.2138818/7.5),1.07)/86400 -> 0.03907634953 | M21: 00:43:10 | N21: =(M21*86400)*POWER((6.2138818/5),1.07)/86400 -> 0.03782565995 | O21: 00:33:29 | P21: =(O21*86400)*POWER((6.2138818/3.9),1.07)/86400 -> 0.03827590445 | Q21: 00:26:27 | R21: =(Q21*86400)*POWER((10/5),1.07)/86400 -> 0.03856250872 | S21: 02:07:51 | T21: =(S21*86400)*POWER((6.2138818/13.1094),1.07)/86400 -> 0.03994137625 | X21: 8 | Y21: 0.0391797518 | Z21: 5 | AA21: =IFERROR(IF(X21>5,AVERAGE(SMALL((F21,H21,I21,K21:L21,N21,P21,R21,T21:U21,W21),{1,2,3,4,5})),Y21),"No race run") -> 0.03853049194
B22: Lopez | C22: Hannah | D22: F | E22: 0.09851851852 | F22: =(E22*86400)*POWER((6.2138818/13.1094),1.07)/86400 -> 0.04432029653 | G22: 0.07179398148 | H22: =(G22*86400)*POWER((6.2138818/10),1.07)/86400 -> 0.04315055994 | I22: 00:59:26 | J22: 01:18:13 | K22: =(J22*86400)*POWER((6.2138818/7.5),1.07)/86400 -> 0.04441397635 | L22: 01:02:18 | M22: 00:46:06 | N22: =(M22*86400)*POWER((6.2138818/5),1.07)/86400 -> 0.04039605229 | O22: 00:34:42 | P22: =(O22*86400)*POWER((6.2138818/3.9),1.07)/86400 -> 0.03966671631 | Q22: 00:27:51 | R22: =(Q22*86400)*POWER((10/5),1.07)/86400 -> 0.0406036245 | S22: 02:17:39 | T22: =(S22*86400)*POWER((6.2138818/13.1094),1.07)/86400 -> 0.04300297568 | X22: 9 | Y22: 0.04223235985 | Z22: 5 | AA22: =IFERROR(IF(X22>5,AVERAGE(SMALL((F22,H22,I22,K22:L22,N22,P22,R22,T22:U22,W22),{1,2,3,4,5})),Y22),"No race run") -> 0.04098850339
B23: Stark | C23: Roger | D23: M | I23: 01:01:58 | L23: 01:00:49 | M23: 00:46:55 | N23: =(M23*86400)*POWER((6.2138818/5),1.07)/86400 -> 0.04111167288 | O23: 00:35:01 | P23: =(O23*86400)*POWER((6.2138818/3.9),1.07)/86400 -> 0.04002870844 | Q23: 00:28:19 | R23: =(Q23*86400)*POWER((10/5),1.07)/86400 -> 0.04128399642 | V23: 0.02041666667 | W23: =(V23*86400)*POWER((10/5),1.07)/86400 -> 0.04286343125 | X23: 6 | Y23: 0.04175900212 | Z23: 5 | AA23: =IFERROR(IF(X23>5,AVERAGE(SMALL((F23,H23,I23,K23:L23,N23,P23,R23,T23:U23,W23),{1,2,3,4,5})),Y23),"No race run") -> 0.04150432106
B24: Eaton | C24: Sarah | D24: F | E24: 0.1000231481 | F24: =(E24*86400)*POWER((6.2138818/13.1094),1.07)/86400 -> 0.04499718075 | G24: 0.07032407407 | H24: =(G24*86400)*POWER((6.2138818/10),1.07)/86400 -> 0.04226709692 | J24: 01:20:28 | K24: =(J24*86400)*POWER((6.2138818/7.5),1.07)/86400 -> 0.04569159979 | M24: 00:48:31 | N24: =(M24*86400)*POWER((6.2138818/5),1.07)/86400 -> 0.04251370507 | O24: 00:35:12 | P24: =(O24*86400)*POWER((6.2138818/3.9),1.07)/86400 -> 0.04023828283 | Q24: 00:29:44 | R24: =(Q24*86400)*POWER((10/5),1.07)/86400 -> 0.04334941119 | X24: 6 | Y24: 0.04317621276 | Z24: 5 | AA24: =IFERROR(IF(X24>5,AVERAGE(SMALL((F24,H24,I24,K24:L24,N24,P24,R24,T24:U24,W24),{1,2,3,4,5})),Y24),"No race run") -> 0.04267313535
B26: Truesdale | C26: Iain | D26: M | E26: 0.07283564815 | F26: =(E26*86400)*POWER((6.2138818/13.1094),1.07)/86400 -> 0.03276640344 | I26: 00:45:30 | L26: 00:47:07 | O26: 00:27:48 | P26: =(O26*86400)*POWER((6.2138818/3.9),1.07)/86400 -> 0.03177909837 | X26: =COUNT(F26,H26,I26,K26:L26,N26,P26,R26,T26:U26,W26) -> 4 | Y26: =IFERROR(AVERAGE(F26,H26,I26,K26:L26,N26,P26,R26,T26:U26,W26),"No race run") -> 0.03221565786 | Z26: =IF(COUNT(F26,H26,I26,K26:L26,N26,P26,R26,T26:U26,W26)>5,5,COUNT(F26,H26,I26,K26:L26,N26,P26,R26,T26:U26,W26)) -> 4 | AA26: =IFERROR(IF(X26>5,AVERAGE(SMALL((F26,H26,I26,K26:L26,N26,P26,R26,T26:U26,W26),{1,2,3,4,5})),Y26),"No race run") -> 0.03221565786
B27: Boyle | C27: John | D27: M | G27: 0.05469907407 | H27: =(G27*86400)*POWER((6.2138818/10),1.07)/86400 -> 0.03287595459 | I27: 00:46:50 | J27: 00:58:19 | K27: =(J27*86400)*POWER((6.2138818/7.5),1.07)/86400 -> 0.0331141068 | U27: 00:46:09 | X27: 4 | Y27: 0.03264045516 | Z27: 4 | AA27: =IFERROR(IF(X27>5,AVERAGE(SMALL((F27,H27,I27,K27:L27,N27,P27,R27,T27:U27,W27),{1,2,3,4,5})),Y27),"No race run") -> 0.03264045516
B28: Coutts | C28: Pippa | D28: F | E28: 0.07760416667 | F28: =(E28*86400)*POWER((6.2138818/13.1094),1.07)/86400 -> 0.03491160576 | M28: 00:38:35 | N28: =(M28*86400)*POWER((6.2138818/5),1.07)/86400 -> 0.03380942193 | U28: 00:47:43 | V28: 0.01631944444 | W28: =(V28*86400)*POWER((10/5),1.07)/86400 -> 0.0342615862 | X28: 4 | Y28: 0.03402979699 | Z28: 4 | AA28: =IFERROR(IF(X28>5,AVERAGE(SMALL((F28,H28,I28,K28:L28,N28,P28,R28,T28:U28,W28),{1,2,3,4,5})),Y28),"No race run") -> 0.03402979699
B29: Wilson | C29: Anne | D29: F | G29: 0.05778935185 | H29: =(G29*86400)*POWER((6.2138818/10),1.07)/86400 -> 0.03473331385 | I29: 00:51:14 | O29: 00:30:15 | P29: =(O29*86400)*POWER((6.2138818/3.9),1.07)/86400 -> 0.03457977431 | S29: 01:59:06 | T29: =(S29*86400)*POWER((6.2138818/13.1094),1.07)/86400 -> 0.03720780533 | X29: 4 | Y29: 0.0355248993 | Z29: 4 | AA29: =IFERROR(IF(X29>5,AVERAGE(SMALL((F29,H29,I29,K29:L29,N29,P29,R29,T29:U29,W29),{1,2,3,4,5})),Y29),"No race run") -> 0.0355248993
B30: Gray | C30: Duncan | D30: M | G30: 0.06024305556 | H30: =(G30*86400)*POWER((6.2138818/10),1.07)/86400 -> 0.03620807102 | I30: 00:51:33 | O30: 00:31:19 | P30: =(O30*86400)*POWER((6.2138818/3.9),1.07)/86400 -> 0.03579911621 | Q30: 00:23:59 | R30: =(Q30*86400)*POWER((10/5),1.07)/86400 -> 0.03496625712 | X30: 4 | Y30: 0.03569301386 | Z30: 4 | AA30: =IFERROR(IF(X30>5,AVERAGE(SMALL((F30,H30,I30,K30:L30,N30,P30,R30,T30:U30,W30),{1,2,3,4,5})),Y30),"No race run") -> 0.03569301386
B31: Muncey | C31: Laura | D31: F | I31: 00:56:12 | M31: 00:45:05 | N31: =(M31*86400)*POWER((6.2138818/5),1.07)/86400 -> 0.03950517767 | O31: 00:31:29 | P31: =(O31*86400)*POWER((6.2138818/3.9),1.07)/86400 -> 0.03598963838 | S31: 02:00:09 | T31: =(S31*86400)*POWER((6.2138818/13.1094),1.07)/86400 -> 0.03753583384 | X31: 4 | Y31: 0.03801460692 | Z31: 4 | AA31: =IFERROR(IF(X31>5,AVERAGE(SMALL((F31,H31,I31,K31:L31,N31,P31,R31,T31:U31,W31),{1,2,3,4,5})),Y31),"No race run") -> 0.03801460692
B32: Johns | C32: Andy | D32: M | E32: 0.05871527778 | F32: =(E32*86400)*POWER((6.2138818/13.1094),1.07)/86400 -> 0.0264141053 | L32: 00:40:12 | M32: 00:31:16 | N32: =(M32*86400)*POWER((6.2138818/5),1.07)/86400 -> 0.02739804559 | X32: 3 | Y32: 0.02724293918 | Z32: 3 | AA32: =IFERROR(IF(X32>5,AVERAGE(SMALL((F32,H32,I32,K32:L32,N32,P32,R32,T32:U32,W32),{1,2,3,4,5})),Y32),"No race run") -> 0.02724293918
B33: Grant | C33: Ian | D33: M | E33: 01:31:32 | F33: =(E33*86400)*POWER((6.2138818/13.1094),1.07)/86400 -> 0.02859575523 | G33: 01:05:50 | H33: =(G33*86400)*POWER((6.2138818/10),1.07)/86400 -> 0.02747778684 | O33: 00:24:22 | P33: =(O33*86400)*POWER((6.2138818/3.9),1.07)/86400 -> 0.02785434162 | X33: 3 | Y33: 0.02797596123 | Z33: 3 | AA33: =IFERROR(IF(X33>5,AVERAGE(SMALL((F33,H33,I33,K33:L33,N33,P33,R33,T33:U33,W33),{1,2,3,4,5})),Y33),"No race run") -> 0.02797596123
B34: Beveridge | C34: John | D34: M | E34: 01:33:59 | F34: =(E34*86400)*POWER((6.2138818/13.1094),1.07)/86400 -> 0.02936115509 | I34: 00:42:33 | M34: 00:33:02 | N34: =(M34*86400)*POWER((6.2138818/5),1.07)/86400 -> 0.02894612279 | X34: 3 | Y34: 0.02928529633 | Z34: 3 | AA34: =IFERROR(IF(X34>5,AVERAGE(SMALL((F34,H34,I34,K34:L34,N34,P34,R34,T34:U34,W34),{1,2,3,4,5})),Y34),"No race run") -> 0.02928529633
B35: Blair | C35: Steven | D35: M | O35: 00:24:49 | P35: =(O35*86400)*POWER((6.2138818/3.9),1.07)/86400 -> 0.02836875148 | U35: 00:43:45 | V35: 0.01425925926 | W35: =(V35*86400)*POWER((10/5),1.07)/86400 -> 0.02993636468 | X35: 3 | Y35: 0.02956235354 | Z35: 3 | AA35: =IFERROR(IF(X35>5,AVERAGE(SMALL((F35,H35,I35,K35:L35,N35,P35,R35,T35:U35,W35),{1,2,3,4,5})),Y35),"No race run") -> 0.02956235354
B36: Palmer | C36: Linda | D36: F | E36: 0.07537037037 | F36: =(E36*86400)*POWER((6.2138818/13.1094),1.07)/86400 -> 0.03390669302 | S36: 01:53:55 | T36: =(S36*86400)*POWER((6.2138818/13.1094),1.07)/86400 -> 0.03558848999 | U36: 00:52:17 | X36: 3 | Y36: 0.03526768446 | Z36: 3 | AA36: =IFERROR(IF(X36>5,AVERAGE(SMALL((F36,H36,I36,K36:L36,N36,P36,R36,T36:U36,W36),{1,2,3,4,5})),Y36),"No race run") -> 0.03526768446
B37: Hunter | C37: Neil | D37: M | L37: 00:52:53 | M37: 00:41:02 | N37: =(M37*86400)*POWER((6.2138818/5),1.07)/86400 -> 0.03595628371 | S37: 02:02:05 | T37: =(S37*86400)*POWER((6.2138818/13.1094),1.07)/86400 -> 0.03813982284 | X37: 3 | Y37: 0.03694021453 | Z37: 3 | AA37: =IFERROR(IF(X37>5,AVERAGE(SMALL((F37,H37,I37,K37:L37,N37,P37,R37,T37:U37,W37),{1,2,3,4,5})),Y37),"No race run") -> 0.03694021453
B38: Aitken | C38: Kerry | D38: F | E38: 0.08387731481 | F38: =(E38*86400)*POWER((6.2138818/13.1094),1.07)/86400 -> 0.03773369231 | I38: 00:55:04 | L38: 00:55:41 | X38: 3 | Y38: 0.03821447151 | Z38: 3 | AA38: =IFERROR(IF(X38>5,AVERAGE(SMALL((F38,H38,I38,K38:L38,N38,P38,R38,T38:U38,W38),{1,2,3,4,5})),Y38),"No race run") -> 0.03821447151
B39: Houston | C39: Alison | D39: F | I39: 00:57:48 | M39: 00:43:42 | N39: =(M39*86400)*POWER((6.2138818/5),1.07)/86400 -> 0.03829300401 | Q39: 00:26:38 | R39: =(Q39*86400)*POWER((10/5),1.07)/86400 -> 0.0388297977 | X39: 3 | Y39: 0.0390872302 | Z39: 3 | AA39: =IFERROR(IF(X39>5,AVERAGE(SMALL((F39,H39,I39,K39:L39,N39,P39,R39,T39:U39,W39),{1,2,3,4,5})),Y39),"No race run") -> 0.0390872302
B40: Hookham | C40: Peter | D40: M | E40: 0.07587962963 | F40: =(E40*86400)*POWER((6.2138818/13.1094),1.07)/86400 -> 0.0341357923 | G40: 0.05387731481 | H40: =(G40*86400)*POWER((6.2138818/10),1.07)/86400 -> 0.03238205006 | X40: 2 | Y40: 0.03325892118 | Z40: 2 | AA40: =IFERROR(IF(X40>5,AVERAGE(SMALL((F40,H40,I40,K40:L40,N40,P40,R40,T40:U40,W40),{1,2,3,4,5})),Y40),"No race run") -> 0.03325892118
B41: Blyth | C41: Scott | D41: M | L41: 00:50:05 | O41: 00:29:04 | P41: =(O41*86400)*POWER((6.2138818/3.9),1.07)/86400 -> 0.03322706688 | X41: 2 | Y41: 0.03400357974 | Z41: 2 | AA41: =IFERROR(IF(X41>5,AVERAGE(SMALL((F41,H41,I41,K41:L41,N41,P41,R41,T41:U41,W41),{1,2,3,4,5})),Y41),"No race run") -> 0.03400357974
B42: Tweddle | C42: Scott | D42: M | I42: 00:48:36 | L42: 00:49:23 | X42: 2 | Y42: 0.03402199074 | Z42: 2 | AA42: =IFERROR(IF(X42>5,AVERAGE(SMALL((F42,H42,I42,K42:L42,N42,P42,R42,T42:U42,W42),{1,2,3,4,5})),Y42),"No race run") -> 0.03402199074
B43: Hunter | C43: Finlay | D43: M | I43: 00:50:12 | L43: 00:49:17 | X43: 2 | Y43: 0.03454282407 | Z43: 2 | AA43: =IFERROR(IF(X43>5,AVERAGE(SMALL((F43,H43,I43,K43:L43,N43,P43,R43,T43:U43,W43),{1,2,3,4,5})),Y43),"No race run") -> 0.03454282407
B44: Lopez | C44: Gill | D44: F | G44: 0.0577662037 | H44: =(G44*86400)*POWER((6.2138818/10),1.07)/86400 -> 0.03471940104 | M44: 00:39:49 | N44: =(M44*86400)*POWER((6.2138818/5),1.07)/86400 -> 0.03489015507 | X44: 2 | Y44: 0.03480477806 | Z44: 2 | AA44: =IFERROR(IF(X44>5,AVERAGE(SMALL((F44,H44,I44,K44:L44,N44,P44,R44,T44:U44,W44),{1,2,3,4,5})),Y44),"No race run") -> 0.03480477806
B45: Grieve | C45: Wendy | D45: F | E45: 0.0771412037 | F45: =(E45*86400)*POWER((6.2138818/13.1094),1.07)/86400 -> 0.03470333369 | U45: 00:50:32 | X45: 2 | Y45: 0.03489796314 | Z45: 2 | AA45: =IFERROR(IF(X45>5,AVERAGE(SMALL((F45,H45,I45,K45:L45,N45,P45,R45,T45:U45,W45),{1,2,3,4,5})),Y45),"No race run") -> 0.03489796314
B46: Rose | C46: Julie | D46: F | E46: 0.08197916667 | F46: =(E46*86400)*POWER((6.2138818/13.1094),1.07)/86400 -> 0.03687977682 | J46: 01:07:17 | K46: =(J46*86400)*POWER((6.2138818/7.5),1.07)/86400 -> 0.03820567281 | X46: 2 | Y46: 0.03754272482 | Z46: 2 | AA46: =IFERROR(IF(X46>5,AVERAGE(SMALL((F46,H46,I46,K46:L46,N46,P46,R46,T46:U46,W46),{1,2,3,4,5})),Y46),"No race run") -> 0.03754272482
B47: Macintyre | C47: Anne | D47: F | Q47: 00:26:30 | R47: =(Q47*86400)*POWER((10/5),1.07)/86400 -> 0.03863540572 | S47: 02:01:39 | T47: =(S47*86400)*POWER((6.2138818/13.1094),1.07)/86400 -> 0.038004446 | X47: 2 | Y47: 0.03831992586 | Z47: 2 | AA47: =IFERROR(IF(X47>5,AVERAGE(SMALL((F47,H47,I47,K47:L47,N47,P47,R47,T47:U47,W47),{1,2,3,4,5})),Y47),"No race run") -> 0.03831992586
B48: Kemp | C48: Fiona | D48: F | L48: 00:55:35 | V48: 0.01986111111 | W48: =(V48*86400)*POWER((10/5),1.07)/86400 -> 0.04169707938 | X48: 2 | Y48: 0.04014830821 | Z48: 2 | AA48: =IFERROR(IF(X48>5,AVERAGE(SMALL((F48,H48,I48,K48:L48,N48,P48,R48,T48:U48,W48),{1,2,3,4,5})),Y48),"No race run") -> 0.04014830821
B49: Nouillan | C49: Bill | D49: M | Q49: 00:33:48 | R49: =(Q49*86400)*POWER((10/5),1.07)/86400 -> 0.04927836654 | V49: 0.02311342593 | W49: =(V49*86400)*POWER((10/5),1.07)/86400 -> 0.04852509762 | X49: 2 | Y49: 0.04890173208 | Z49: 2 | AA49: =IFERROR(IF(X49>5,AVERAGE(SMALL((F49,H49,I49,K49:L49,N49,P49,R49,T49:U49,W49),{1,2,3,4,5})),Y49),"No race run") -> 0.04890173208
B50: MacCalman | C50: Sandy | D50: M | M50: 00:59:19 | N50: =(M50*86400)*POWER((6.2138818/5),1.07)/86400 -> 0.05197742231 | Q50: 00:34:42 | R50: =(Q50*86400)*POWER((10/5),1.07)/86400 -> 0.05059051239 | X50: 2 | Y50: 0.05128396735 | Z50: 2 | AA50: =IFERROR(IF(X50>5,AVERAGE(SMALL((F50,H50,I50,K50:L50,N50,P50,R50,T50:U50,W50),{1,2,3,4,5})),Y50),"No race run") -> 0.05128396735
B51: Kemp | C51: Allan | D51: M | S51: 01:22:24 | T51: =(S51*86400)*POWER((6.2138818/13.1094),1.07)/86400 -> 0.02574242787 | X51: 1 | Y51: 0.02574242787 | Z51: 1 | AA51: =IFERROR(IF(X51>5,AVERAGE(SMALL((F51,H51,I51,K51:L51,N51,P51,R51,T51:U51,W51),{1,2,3,4,5})),Y51),"No race run") -> 0.02574242787
B52: Jarron | C52: Chester | D52: M | I52: 00:40:20 | X52: 1 | Y52: 0.02800925926 | Z52: 1 | AA52: =IFERROR(IF(X52>5,AVERAGE(SMALL((F52,H52,I52,K52:L52,N52,P52,R52,T52:U52,W52),{1,2,3,4,5})),Y52),"No race run") -> 0.02800925926
B53: Webster | C53: Billy | D53: M | L53: 00:41:38 | X53: 1 | Y53: 0.02891203704 | Z53: 1 | AA53: =IFERROR(IF(X53>5,AVERAGE(SMALL((F53,H53,I53,K53:L53,N53,P53,R53,T53:U53,W53),{1,2,3,4,5})),Y53),"No race run") -> 0.02891203704
B54: Telfer | C54: Kenneth | D54: M | I54: 00:43:00 | X54: 1 | Y54: 0.02986111111 | Z54: 1 | AA54: =IFERROR(IF(X54>5,AVERAGE(SMALL((F54,H54,I54,K54:L54,N54,P54,R54,T54:U54,W54),{1,2,3,4,5})),Y54),"No race run") -> 0.02986111111
B55: Dobson | C55: Ben | D55: M | M55: 00:34:44 | N55: =(M55*86400)*POWER((6.2138818/5),1.07)/86400 -> 0.03043578199 | X55: 1 | Y55: 0.03043578199 | Z55: 1 | AA55: =IFERROR(IF(X55>5,AVERAGE(SMALL((F55,H55,I55,K55:L55,N55,P55,R55,T55:U55,W55),{1,2,3,4,5})),Y55),"No race run") -> 0.03043578199
B56: Porter | C56: Hazel | D56: F | E56: 0.06780092593 | F56: =(E56*86400)*POWER((6.2138818/13.1094),1.07)/86400 -> 0.03050144467 | X56: 1 | Y56: 0.03050144467 | Z56: 1 | AA56: =IFERROR(IF(X56>5,AVERAGE(SMALL((F56,H56,I56,K56:L56,N56,P56,R56,T56:U56,W56),{1,2,3,4,5})),Y56),"No race run") -> 0.03050144467
B57: Sinclair | C57: Ally | D57: M | O57: 00:26:48 | P57: =(O57*86400)*POWER((6.2138818/3.9),1.07)/86400 -> 0.03063596534 | X57: 1 | Y57: 0.03063596534 | Z57: 1 | AA57: =IFERROR(IF(X57>5,AVERAGE(SMALL((F57,H57,I57,K57:L57,N57,P57,R57,T57:U57,W57),{1,2,3,4,5})),Y57),"No race run") -> 0.03063596534
B58: Baughan | C58: Nick | D58: M | I58: 00:44:41 | X58: =COUNT(F58,H58,I58,K58:L58,N58,P58,R58,T58:U58,W58) -> 1 | Y58: =IFERROR(AVERAGE(F58,H58,I58,K58:L58,N58,P58,R58,T58:U58,W58),"No race run") -> 0.03103009259 | Z58: =IF(COUNT(F58,H58,I58,K58:L58,N58,P58,R58,T58:U58,W58)>5,5,COUNT(F58,H58,I58,K58:L58,N58,P58,R58,T58:U58,W58)) -> 1 | AA58: =IFERROR(IF(X58>5,AVERAGE(SMALL((F58,H58,I58,K58:L58,N58,P58,R58,T58:U58,W58),{1,2,3,4,5})),Y58),"No race run") -> 0.03103009259
B59: Kelly | C59: Graeme | D59: M | E59: 0.07038194444 | F59: =(E59*86400)*POWER((6.2138818/13.1094),1.07)/86400 -> 0.03166256146 | X59: 1 | Y59: 0.03166256146 | Z59: 1 | AA59: =IFERROR(IF(X59>5,AVERAGE(SMALL((F59,H59,I59,K59:L59,N59,P59,R59,T59:U59,W59),{1,2,3,4,5})),Y59),"No race run") -> 0.03166256146
B60: McHale | C60: Martin | D60: M | U60: 00:45:37 | X60: 1 | Y60: 0.03167824074 | Z60: 1 | AA60: =IFERROR(IF(X60>5,AVERAGE(SMALL((F60,H60,I60,K60:L60,N60,P60,R60,T60:U60,W60),{1,2,3,4,5})),Y60),"No race run") -> 0.03167824074
B61: Graham | C61: Steven | D61: M | U61: 00:48:03 | X61: 1 | Y61: 0.03336805556 | Z61: 1 | AA61: =IFERROR(IF(X61>5,AVERAGE(SMALL((F61,H61,I61,K61:L61,N61,P61,R61,T61:U61,W61),{1,2,3,4,5})),Y61),"No race run") -> 0.03336805556
B62: Ritchie | C62: Ronnie | D62: M | G62: 01:20:11 | H62: =(G62*86400)*POWER((6.2138818/10),1.07)/86400 -> 0.03346724873 | X62: 1 | Y62: 0.03346724873 | Z62: 1 | AA62: =IFERROR(IF(X62>5,AVERAGE(SMALL((F62,H62,I62,K62:L62,N62,P62,R62,T62:U62,W62),{1,2,3,4,5})),Y62),"No race run") -> 0.03346724873
B63: Malcolm | C63: Ann | D63: F | M63: 00:41:31 | N63: =(M63*86400)*POWER((6.2138818/5),1.07)/86400 -> 0.03637981426 | X63: 1 | Y63: 0.03637981426 | Z63: 1 | AA63: =IFERROR(IF(X63>5,AVERAGE(SMALL((F63,H63,I63,K63:L63,N63,P63,R63,T63:U63,W63),{1,2,3,4,5})),Y63),"No race run") -> 0.03637981426
B64: Hunter | C64: Morna | D64: F | E64: 01:58:59 | F64: =(E64*86400)*POWER((6.2138818/13.1094),1.07)/86400 -> 0.03717135772 | X64: 1 | Y64: 0.03717135772 | Z64: 1 | AA64: =IFERROR(IF(X64>5,AVERAGE(SMALL((F64,H64,I64,K64:L64,N64,P64,R64,T64:U64,W64),{1,2,3,4,5})),Y64),"No race run") -> 0.03717135772
B65: Mitchell | C65: Karen | D65: F | M65: 00:42:53 | N65: =(M65*86400)*POWER((6.2138818/5),1.07)/86400 -> 0.03757738342 | X65: 1 | Y65: 0.03757738342 | Z65: 1 | AA65: =IFERROR(IF(X65>5,AVERAGE(SMALL((F65,H65,I65,K65:L65,N65,P65,R65,T65:U65,W65),{1,2,3,4,5})),Y65),"No race run") -> 0.03757738342
B66: Telfer | C66: Sophie | D66: F | I66: 00:54:39 | X66: 1 | Y66: 0.03795138889 | Z66: 1 | AA66: =IFERROR(IF(X66>5,AVERAGE(SMALL((F66,H66,I66,K66:L66,N66,P66,R66,T66:U66,W66),{1,2,3,4,5})),Y66),"No race run") -> 0.03795138889
B67: Robertson | C67: Alison | D67: F | G67: 0.06430555556 | H67: =(G67*86400)*POWER((6.2138818/10),1.07)/86400 -> 0.03864976802 | X67: 1 | Y67: 0.03864976802 | Z67: 1 | AA67: =IFERROR(IF(X67>5,AVERAGE(SMALL((F67,H67,I67,K67:L67,N67,P67,R67,T67:U67,W67),{1,2,3,4,5})),Y67),"No race run") -> 0.03864976802
B68: Young | C68: Natalie | D68: F | I68: 00:56:25 | X68: 1 | Y68: 0.03917824074 | Z68: 1 | AA68: =IFERROR(IF(X68>5,AVERAGE(SMALL((F68,H68,I68,K68:L68,N68,P68,R68,T68:U68,W68),{1,2,3,4,5})),Y68),"No race run") -> 0.03917824074
B69: McLean | C69: Susan | D69: F | U69: 00:56:35 | X69: 1 | Y69: 0.03929398148 | Z69: 1 | AA69: =IFERROR(IF(X69>5,AVERAGE(SMALL((F69,H69,I69,K69:L69,N69,P69,R69,T69:U69,W69),{1,2,3,4,5})),Y69),"No race run") -> 0.03929398148
B70: Donnachie | C70: Gordon | D70: M | G70: 0.06770833333 | H70: =(G70*86400)*POWER((6.2138818/10),1.07)/86400 -> 0.04069495013 | X70: 1 | Y70: 0.04069495013 | Z70: 1 | AA70: =IFERROR(IF(X70>5,AVERAGE(SMALL((F70,H70,I70,K70:L70,N70,P70,R70,T70:U70,W70),{1,2,3,4,5})),Y70),"No race run") -> 0.04069495013
B71: Carmichael | C71: Isabel | D71: F | V71: 0.02393518519 | W71: =(V71*86400)*POWER((10/5),1.07)/86400 -> 0.05025032643 | X71: 1 | Y71: 0.05025032643 | Z71: 1 | AA71: =IFERROR(IF(X71>5,AVERAGE(SMALL((F71,H71,I71,K71:L71,N71,P71,R71,T71:U71,W71),{1,2,3,4,5})),Y71),"No race run") -> 0.05025032643
B72: Gordon | C72: Jillian | D72: F | X72: 0 | Y72: No race run | Z72: 0 | AA72: =IFERROR(IF(X72>5,AVERAGE(SMALL((F72,H72,I72,K72:L72,N72,P72,R72,T72:U72,W72),{1,2,3,4,5})),Y72),"No race run") -> No race run
B73: Newton | C73: Matt | D73: M | X73: 0 | Y73: No race run | Z73: 0 | AA73: =IFERROR(IF(X73>5,AVERAGE(SMALL((F73,H73,I73,K73:L73,N73,P73,R73,T73:U73,W73),{1,2,3,4,5})),Y73),"No race run") -> No race run
B74: McCulloch | C74: Angus | D74: M | X74: 0 | Y74: No race run | Z74: 0 | AA74: =IFERROR(IF(X74>5,AVERAGE(SMALL((F74,H74,I74,K74:L74,N74,P74,R74,T74:U74,W74),{1,2,3,4,5})),Y74),"No race run") -> No race run
B75: Shah | C75: Rashmi | D75: M | X75: 0 | Y75: No race run | Z75: 0 | AA75: =IFERROR(IF(X75>5,AVERAGE(SMALL((F75,H75,I75,K75:L75,N75,P75,R75,T75:U75,W75),{1,2,3,4,5})),Y75),"No race run") -> No race run
B76: Cuthbert | C76: Keith | D76: M | X76: 0 | Y76: No race run | Z76: 0 | AA76: =IFERROR(IF(X76>5,AVERAGE(SMALL((F76,H76,I76,K76:L76,N76,P76,R76,T76:U76,W76),{1,2,3,4,5})),Y76),"No race run") -> No race run
B77: Reith | C77: Kevin | D77: M | X77: 0 | Y77: No race run | Z77: 0 | AA77: =IFERROR(IF(X77>5,AVERAGE(SMALL((F77,H77,I77,K77:L77,N77,P77,R77,T77:U77,W77),{1,2,3,4,5})),Y77),"No race run") -> No race run
B78: Parsons | C78: Simon | D78: M | X78: 0 | Y78: No race run | Z78: 0 | AA78: =IFERROR(IF(X78>5,AVERAGE(SMALL((F78,H78,I78,K78:L78,N78,P78,R78,T78:U78,W78),{1,2,3,4,5})),Y78),"No race run") -> No race run
B79: Rae | C79: Alison | D79: F | X79: 0 | Y79: No race run | Z79: 0 | AA79: =IFERROR(IF(X79>5,AVERAGE(SMALL((F79,H79,I79,K79:L79,N79,P79,R79,T79:U79,W79),{1,2,3,4,5})),Y79),"No race run") -> No race run
B80: Parsons | C80: Vicky | D80: F | X80: 0 | Y80: No race run | Z80: 0 | AA80: =IFERROR(IF(X80>5,AVERAGE(SMALL((F80,H80,I80,K80:L80,N80,P80,R80,T80:U80,W80),{1,2,3,4,5})),Y80),"No race run") -> No race run
B81: Baughan | C81: Paul | D81: M | X81: 0 | Y81: No race run | Z81: 0 | AA81: =IFERROR(IF(X81>5,AVERAGE(SMALL((F81,H81,I81,K81:L81,N81,P81,R81,T81:U81,W81),{1,2,3,4,5})),Y81),"No race run") -> No race run
B82: Rennie | C82: Amanda | D82: F | X82: 0 | Y82: No race run | Z82: 0 | AA82: =IFERROR(IF(X82>5,AVERAGE(SMALL((F82,H82,I82,K82:L82,N82,P82,R82,T82:U82,W82),{1,2,3,4,5})),Y82),"No race run") -> No race run
B83: Kemp | C83: Gillian | D83: F | X83: 0 | Y83: No race run | Z83: 0 | AA83: =IFERROR(IF(X83>5,AVERAGE(SMALL((F83,H83,I83,K83:L83,N83,P83,R83,T83:U83,W83),{1,2,3,4,5})),Y83),"No race run") -> No race run
B84: Houston | C84: David | D84: M | X84: 0 | Y84: No race run | Z84: 0 | AA84: =IFERROR(IF(X84>5,AVERAGE(SMALL((F84,H84,I84,K84:L84,N84,P84,R84,T84:U84,W84),{1,2,3,4,5})),Y84),"No race run") -> No race run
B85: Cuthbert | C85: Catriona | D85: F | X85: 0 | Y85: No race run | Z85: 0 | AA85: =IFERROR(IF(X85>5,AVERAGE(SMALL((F85,H85,I85,K85:L85,N85,P85,R85,T85:U85,W85),{1,2,3,4,5})),Y85),"No race run") -> No race run
B86: Robertson | C86: Neil | D86: M | X86: 0 | Y86: No race run | Z86: 0 | AA86: =IFERROR(IF(X86>5,AVERAGE(SMALL((F86,H86,I86,K86:L86,N86,P86,R86,T86:U86,W86),{1,2,3,4,5})),Y86),"No race run") -> No race run
B87: Coutts | C87: Sarah | D87: F | X87: 0 | Y87: No race run | Z87: 0 | AA87: =IFERROR(IF(X87>5,AVERAGE(SMALL((F87,H87,I87,K87:L87,N87,P87,R87,T87:U87,W87),{1,2,3,4,5})),Y87),"No race run") -> No race run
B88: Coutts | C88: Pippa | D88: F | X88: 0 | Y88: No race run | Z88: 0 | AA88: =IFERROR(IF(X88>5,AVERAGE(SMALL((F88,H88,I88,K88:L88,N88,P88,R88,T88:U88,W88),{1,2,3,4,5})),Y88),"No race run") -> No race run
B89: Myerscough | C89: Christine | D89: F | X89: 0 | Y89: No race run | Z89: 0 | AA89: =IFERROR(IF(X89>5,AVERAGE(SMALL((F89,H89,I89,K89:L89,N89,P89,R89,T89:U89,W89),{1,2,3,4,5})),Y89),"No race run") -> No race run
B90: Hunter | C90: Lynn | D90: F | X90: =COUNT(F90,H90,I90,K90:L90,N90,P90,R90,T90:U90,W90) -> 0 | Y90: No race run | Z90: 0 | AA90: =IFERROR(IF(X90>5,AVERAGE(SMALL((F90,H90,I90,K90:L90,N90,P90,R90,T90:U90,W90),{1,2,3,4,5})),Y90),"No race run") -> No race run
B91: Rogowski | C91: Andreas | D91: M | X91: 0 | Y91: No race run | Z91: 0 | AA91: =IFERROR(IF(X91>5,AVERAGE(SMALL((F91,H91,I91,K91:L91,N91,P91,R91,T91:U91,W91),{1,2,3,4,5})),Y91),"No race run") -> No race run
B92: Smith | C92: Norman | D92: M | X92: 0 | Y92: No race run | Z92: 0 | AA92: =IFERROR(IF(X92>5,AVERAGE(SMALL((F92,H92,I92,K92:L92,N92,P92,R92,T92:U92,W92),{1,2,3,4,5})),Y92),"No race run") -> No race run
B93: Hill | C93: Lisa | D93: F | X93: 0 | Y93: No race run | Z93: 0 | AA93: =IFERROR(IF(X93>5,AVERAGE(SMALL((F93,H93,I93,K93:L93,N93,P93,R93,T93:U93,W93),{1,2,3,4,5})),Y93),"No race run") -> No race run
B94: Logan | C94: Keith | D94: M | X94: 0 | Y94: No race run | Z94: 0 | AA94: =IFERROR(IF(X94>5,AVERAGE(SMALL((F94,H94,I94,K94:L94,N94,P94,R94,T94:U94,W94),{1,2,3,4,5})),Y94),"No race run") -> No race run
